[Event "Titled Tuesday Blitz June 28 Late 2022"]
[White "Petersson, Kjell"]
[Black "Hansen, Eric"]
[WhiteFideId "1705148"]
[BlackFideId "2606771"]
[WhiteElo "2009"]
[BlackElo "2568"]
[Result "0-1"]
[Round "03"]
[TimeControl "180+1"]
[Date "2022.06.29"]
[WhiteClock "0:00:05"]
[BlackClock "0:01:09"]

1. d4 {[%clk 0:03:00]}  Nf6 {[%clk 0:02:59]} 2. Bf4 {[%clk 0:03:01]}  b6 {[%clk 0:03:00]} 3. Nf3 {[%clk 0:03:00]}  Bb7 {[%clk 0:03:00]} 4. e3 {[%clk 0:03:00]}  d6 {[%clk 0:02:59]} 5. Bd3 {[%clk 0:02:56]}  Nbd7 {[%clk 0:02:59]} 6. c4 {[%clk 0:02:55]}  g6 {[%clk 0:02:59]} 7. Nc3 {[%clk 0:02:54]}  Bg7 {[%clk 0:02:59]} 8. Qc2 {[%clk 0:02:42]}  O-O {[%clk 0:02:58]} 9. h4 {[%clk 0:02:42]}  Qe8 {[%clk 0:02:57]} 10. h5 {[%clk 0:02:39]}  e5 {[%clk 0:02:57]} 11. hxg6 {[%clk 0:02:29]}  hxg6 {[%clk 0:02:53]} 12. Bh6 {[%clk 0:02:07]}  e4 {[%clk 0:02:52]} 13. O-O-O {[%clk 0:01:53]}  exd3 {[%clk 0:02:49]} 14. Qxd3 {[%clk 0:01:51]}  Bxh6 {[%clk 0:02:49]} 15. Rxh6 {[%clk 0:01:50]}  Ng4 {[%clk 0:02:50]} 16. Rdh1 {[%clk 0:01:29]}  Nxh6 {[%clk 0:02:48]} 17. Rxh6 {[%clk 0:01:26]}  Kg7 {[%clk 0:02:48]} 18. Rh3 {[%clk 0:01:18]}  Bxf3 {[%clk 0:02:47]} 19. gxf3 {[%clk 0:01:13]}  Rh8 {[%clk 0:02:46]} 20. Rg3 {[%clk 0:01:13]}  Nf6 {[%clk 0:02:36]} 21. f4 {[%clk 0:01:11]}  Rh1+ {[%clk 0:02:30]} 22. Kc2 {[%clk 0:01:08]}  Rh2 {[%clk 0:02:20]} 23. f5 {[%clk 0:00:52]}  Rxf2+ {[%clk 0:02:18]} 24. Kb3 {[%clk 0:00:50]}  a6 {[%clk 0:01:59]} 25. fxg6 {[%clk 0:00:49]}  fxg6 {[%clk 0:02:00]} 26. e4 {[%clk 0:00:46]}  Nh5 {[%clk 0:01:52]} 27. Rg4 {[%clk 0:00:43]}  Qf7 {[%clk 0:01:49]} 28. e5 {[%clk 0:00:39]}  dxe5 {[%clk 0:01:45]} 29. dxe5 {[%clk 0:00:40]}  Re8 {[%clk 0:01:42]} 30. Qd4 {[%clk 0:00:39]}  Re6 {[%clk 0:01:29]} 31. Ne4 {[%clk 0:00:37]}  Rf3+ {[%clk 0:01:28]} 32. Nc3 {[%clk 0:00:37]}  Rf4 {[%clk 0:01:28]} 33. Rxf4 {[%clk 0:00:33]}  Qxf4 {[%clk 0:01:29]} 34. Qd7+ {[%clk 0:00:32]}  Qf7 {[%clk 0:01:29]} 35. Qd4 {[%clk 0:00:29]}  c5 {[%clk 0:01:27]} 36. Qe3 {[%clk 0:00:24]}  Qe7 {[%clk 0:01:23]} 37. Nd5 {[%clk 0:00:20]}  Rxe5 {[%clk 0:01:22]} 38. Qd2 {[%clk 0:00:18]}  Qd6 {[%clk 0:01:21]} 39. Qc3 {[%clk 0:00:18]}  b5 {[%clk 0:01:19]} 40. Ne3 {[%clk 0:00:13]}  Kh7 {[%clk 0:01:15]} 41. Ng4 {[%clk 0:00:11]}  Re4 {[%clk 0:01:15]} 42. Qf3 {[%clk 0:00:07]}  Qf4 {[%clk 0:01:09]} 43. Qh3 {[%clk 0:00:05]}  Qxg4 {[%clk 0:01:09]} 0-1


[Site "https://www.chess.com"]

[Event "Titled Tuesday Blitz June 28 Late 2022"]
[White "Pinheiro, Iung Alicio de O."]
[Black "Lopez Gracia, Fernando"]
[WhiteFideId "2104350"]
[BlackFideId "2207184"]
[WhiteElo "2283"]
[BlackElo "2442"]
[Result "0-1"]
[Round "03"]
[TimeControl "180+1"]
[Date "2022.06.29"]
[WhiteClock "0:00:04"]
[BlackClock "0:00:06"]

1. e4 {[%clk 0:02:58]}  e5 {[%clk 0:02:57]} 2. Nf3 {[%clk 0:02:57]}  Nc6 {[%clk 0:02:55]} 3. Nc3 {[%clk 0:02:53]}  Nf6 {[%clk 0:02:53]} 4. g3 {[%clk 0:02:53]}  d6 {[%clk 0:02:45]} 5. h3 {[%clk 0:02:49]}  Be7 {[%clk 0:02:44]} 6. Bg2 {[%clk 0:02:50]}  O-O {[%clk 0:02:45]} 7. O-O {[%clk 0:02:49]}  h6 {[%clk 0:02:42]} 8. d3 {[%clk 0:02:39]}  Be6 {[%clk 0:02:39]} 9. Kh2 {[%clk 0:02:38]}  d5 {[%clk 0:02:40]} 10. Nd2 {[%clk 0:02:11]}  d4 {[%clk 0:02:34]} 11. Ne2 {[%clk 0:02:10]}  Nd7 {[%clk 0:02:33]} 12. f4 {[%clk 0:02:08]}  f5 {[%clk 0:02:33]} 13. exf5 {[%clk 0:01:53]}  Bxf5 {[%clk 0:02:32]} 14. g4 {[%clk 0:01:28]}  Bh7 {[%clk 0:02:32]} 15. f5 {[%clk 0:01:22]}  Bg5 {[%clk 0:02:32]} 16. Ne4 {[%clk 0:01:17]}  Bxc1 {[%clk 0:02:33]} 17. Rxc1 {[%clk 0:01:16]}  Nf6 {[%clk 0:02:34]} 18. N2g3 {[%clk 0:01:16]}  Kh8 {[%clk 0:02:30]} 19. Nxf6 {[%clk 0:01:16]}  Qxf6 {[%clk 0:02:26]} 20. Ne4 {[%clk 0:01:16]}  Qe7 {[%clk 0:02:22]} 21. Qe1 {[%clk 0:01:13]}  Bg8 {[%clk 0:02:22]} 22. h4 {[%clk 0:01:12]}  Bd5 {[%clk 0:02:20]} 23. Qg3 {[%clk 0:01:10]}  Nb8 {[%clk 0:01:33]} 24. g5 {[%clk 0:01:06]}  Nd7 {[%clk 0:01:33]} 25. Rce1 {[%clk 0:01:00]}  Bxe4 {[%clk 0:01:25]} 26. Rxe4 {[%clk 0:00:58]}  Qf7 {[%clk 0:01:12]} 27. b3 {[%clk 0:00:52]}  Rae8 {[%clk 0:01:12]} 28. Bh3 {[%clk 0:00:45]}  Qe7 {[%clk 0:00:46]} 29. Rfe1 {[%clk 0:00:44]}  Qd6 {[%clk 0:00:42]} 30. Rf1 {[%clk 0:00:37]}  Nc5 {[%clk 0:00:41]} 31. Re2 {[%clk 0:00:33]}  e4 {[%clk 0:00:41]} 32. Qxd6 {[%clk 0:00:33]}  cxd6 {[%clk 0:00:42]} 33. dxe4 {[%clk 0:00:33]}  Rxe4 {[%clk 0:00:42]} 34. Rfe1 {[%clk 0:00:31]}  d5 {[%clk 0:00:31]} 35. Bg2 {[%clk 0:00:25]}  Rxh4+ {[%clk 0:00:30]} 36. Kg3 {[%clk 0:00:24]}  hxg5 {[%clk 0:00:31]} 37. Re8 {[%clk 0:00:23]}  Rxe8 {[%clk 0:00:30]} 38. Rxe8+ {[%clk 0:00:24]}  Kh7 {[%clk 0:00:31]} 39. Bxd5 {[%clk 0:00:23]}  b6 {[%clk 0:00:20]} 40. Bf7 {[%clk 0:00:23]}  g6 {[%clk 0:00:18]} 41. Bxg6+ {[%clk 0:00:16]}  Kg7 {[%clk 0:00:18]} 42. Re7+ {[%clk 0:00:15]}  Kf6 {[%clk 0:00:18]} 43. Rxa7 {[%clk 0:00:12]}  Ke5 {[%clk 0:00:19]} 44. Re7+ {[%clk 0:00:12]}  Kf6 {[%clk 0:00:19]} 45. Rf7+ {[%clk 0:00:10]}  Ke5 {[%clk 0:00:19]} 46. Rf8 {[%clk 0:00:11]}  Ne4+ {[%clk 0:00:16]} 47. Kg2 {[%clk 0:00:10]}  Rg4+ {[%clk 0:00:16]} 48. Kf1 {[%clk 0:00:09]}  Rf4+ {[%clk 0:00:13]} 49. Ke1 {[%clk 0:00:08]}  Nf6 {[%clk 0:00:11]} 50. Rf7 {[%clk 0:00:08]}  g4 {[%clk 0:00:10]} 51. Re7+ {[%clk 0:00:08]}  Kd5 {[%clk 0:00:11]} 52. Re2 {[%clk 0:00:07]}  Ne4 {[%clk 0:00:10]} 53. Bf7+ {[%clk 0:00:03]}  Ke5 {[%clk 0:00:11]} 54. Be6 {[%clk 0:00:03]}  g3 {[%clk 0:00:10]} 55. Rg2 {[%clk 0:00:04]}  Rf3 {[%clk 0:00:09]} 56. Bc4 {[%clk 0:00:04]}  Kf4 {[%clk 0:00:08]} 57. Bd3 {[%clk 0:00:04]}  Nf6 {[%clk 0:00:08]} 58. Ke2 {[%clk 0:00:04]}  Re3+ {[%clk 0:00:08]} 59. Kd2 {[%clk 0:00:04]}  Nd5 {[%clk 0:00:06]} 60. a4 {[%clk 0:00:04]}  Kg4 {[%clk 0:00:06]} 0-1


[Site "https://www.chess.com"]

[Event "Titled Tuesday Blitz June 28 Late 2022"]
[White "Plazuelo Pascual, Juan"]
[Black "Ipek, Egehan"]
[WhiteFideId "32059566"]
[BlackFideId "44523793"]
[WhiteElo "2359"]
[BlackElo "1413"]
[Result "1-0"]
[Round "03"]
[TimeControl "180+1"]
[Date "2022.06.29"]
[WhiteClock "0:01:05"]
[BlackClock "0:00:02"]

1. e4 {[%clk 0:03:00]}  c5 {[%clk 0:02:59]} 2. Nf3 {[%clk 0:03:01]}  e6 {[%clk 0:03:00]} 3. c3 {[%clk 0:03:00]}  d5 {[%clk 0:03:00]} 4. exd5 {[%clk 0:03:00]}  Qxd5 {[%clk 0:03:01]} 5. d4 {[%clk 0:03:01]}  Nf6 {[%clk 0:03:01]} 6. Na3 {[%clk 0:03:01]}  Nc6 {[%clk 0:02:58]} 7. Nb5 {[%clk 0:03:00]}  Qd8 {[%clk 0:02:58]} 8. dxc5 {[%clk 0:03:00]}  Bxc5 {[%clk 0:02:57]} 9. Bf4 {[%clk 0:02:23]}  Nd5 {[%clk 0:02:51]} 10. Bg3 {[%clk 0:02:14]}  a6 {[%clk 0:02:50]} 11. Nbd4 {[%clk 0:02:13]}  Nxd4 {[%clk 0:02:47]} 12. Nxd4 {[%clk 0:02:13]}  O-O {[%clk 0:02:44]} 13. Be2 {[%clk 0:02:08]}  b5 {[%clk 0:02:34]} 14. O-O {[%clk 0:02:02]}  Bb7 {[%clk 0:02:34]} 15. Bf3 {[%clk 0:01:55]}  Qd7 {[%clk 0:02:17]} 16. a4 {[%clk 0:01:46]}  b4 {[%clk 0:01:34]} 17. Nb3 {[%clk 0:01:44]}  Qe7 {[%clk 0:00:22]} 18. c4 {[%clk 0:01:39]}  Rfd8 {[%clk 0:00:20]} 19. cxd5 {[%clk 0:01:31]}  Bxd5 {[%clk 0:00:21]} 20. Nxc5 {[%clk 0:01:26]}  Bc4 {[%clk 0:00:13]} 21. Qc2 {[%clk 0:01:22]}  Bxf1 {[%clk 0:00:14]} 22. Bxa8 {[%clk 0:01:20]}  Rxa8 {[%clk 0:00:09]} 23. Rxf1 {[%clk 0:01:19]}  Rc8 {[%clk 0:00:09]} 24. Rc1 {[%clk 0:01:18]}  h6 {[%clk 0:00:07]} 25. h3 {[%clk 0:01:18]}  a5 {[%clk 0:00:06]} 26. b3 {[%clk 0:01:17]}  Qf6 {[%clk 0:00:06]} 27. Qc4 {[%clk 0:01:17]}  Qb2 {[%clk 0:00:05]} 28. Rc2 {[%clk 0:01:16]}  Qb1+ {[%clk 0:00:05]} 29. Kh2 {[%clk 0:01:16]}  Qe1 {[%clk 0:00:05]} 30. Nd3 {[%clk 0:01:11]}  Qf1 {[%clk 0:00:03]} 31. Qxc8+ {[%clk 0:01:10]}  Kh7 {[%clk 0:00:03]} 32. Qc4 {[%clk 0:01:07]}  Qd1 {[%clk 0:00:02]} 33. Ne5 {[%clk 0:01:06]}  g6 {[%clk 0:00:03]} 34. Qc7 {[%clk 0:01:05]}  Qxc2 {[%clk 0:00:01]} 35. Qxf7+ {[%clk 0:01:04]}  Kh8 {[%clk 0:00:02]} 36. Nxg6+ {[%clk 0:01:04]}  Qxg6 {[%clk 0:00:02]} 37. Be5+ {[%clk 0:01:05]}  Qg7 {[%clk 0:00:02]} 38. Qxg7# {[%clk 0:01:05]} 1-0


[Site "https://www.chess.com"]

[Event "Titled Tuesday Blitz June 28 Late 2022"]
[White "Popilski, Gil"]
[Black "Nozdrachev, Leonid"]
[WhiteFideId "2809060"]
[BlackFideId "24113433"]
[WhiteElo "2537"]
[BlackElo "2129"]
[Result "1-0"]
[Round "03"]
[TimeControl "180+1"]
[Date "2022.06.29"]
[WhiteClock "0:01:45"]
[BlackClock "0:01:42"]

1. e4 {[%clk 0:02:57]}  c6 {[%clk 0:02:59]} 2. Nc3 {[%clk 0:02:55]}  d5 {[%clk 0:02:58]} 3. Nf3 {[%clk 0:02:55]}  dxe4 {[%clk 0:02:58]} 4. Nxe4 {[%clk 0:02:55]}  Nf6 {[%clk 0:02:59]} 5. Qe2 {[%clk 0:02:54]}  Nxe4 {[%clk 0:02:57]} 6. Qxe4 {[%clk 0:02:53]}  Nd7 {[%clk 0:02:58]} 7. Bc4 {[%clk 0:02:51]}  Nf6 {[%clk 0:02:58]} 8. Ne5 {[%clk 0:02:51]}  e6 {[%clk 0:02:59]} 9. Qe2 {[%clk 0:02:51]}  b5 {[%clk 0:02:57]} 10. Bd3 {[%clk 0:02:51]}  Qc7 {[%clk 0:02:53]} 11. f4 {[%clk 0:02:50]}  Bc5 {[%clk 0:02:52]} 12. b3 {[%clk 0:02:43]}  Bd4 {[%clk 0:02:47]} 13. c3 {[%clk 0:02:28]}  Nd5 {[%clk 0:02:46]} 14. cxd4 {[%clk 0:02:24]}  Nxf4 {[%clk 0:02:45]} 15. Qf3 {[%clk 0:02:21]}  Nxd3+ {[%clk 0:02:39]} 16. Qxd3 {[%clk 0:02:21]}  O-O {[%clk 0:02:35]} 17. Ba3 {[%clk 0:02:20]}  Rd8 {[%clk 0:02:34]} 18. Qe4 {[%clk 0:02:17]}  Bb7 {[%clk 0:02:28]} 19. Bc5 {[%clk 0:02:16]}  a5 {[%clk 0:02:20]} 20. O-O {[%clk 0:02:12]}  f6 {[%clk 0:02:19]} 21. Nd3 {[%clk 0:02:09]}  Qf7 {[%clk 0:02:20]} 22. Nf4 {[%clk 0:02:09]}  e5 {[%clk 0:02:17]} 23. dxe5 {[%clk 0:02:07]}  fxe5 {[%clk 0:02:17]} 24. Qxe5 {[%clk 0:02:04]}  Rxd2 {[%clk 0:02:14]} 25. Nh5 {[%clk 0:02:00]}  Qg6 {[%clk 0:02:07]} 26. Ng3 {[%clk 0:01:55]}  Rd5 {[%clk 0:02:02]} 27. Qe7 {[%clk 0:01:53]}  Rxc5 {[%clk 0:01:42]} 28. Qxc5 {[%clk 0:01:45]} 1-0


[Site "https://www.chess.com"]

[Event "Titled Tuesday Blitz June 28 Late 2022"]
[White "Prieto Aranguren, Alain"]
[Black "Della Morte, German"]
[WhiteFideId "2268906"]
[BlackFideId "113522"]
[WhiteElo "2224"]
[BlackElo "2363"]
[Result "0-1"]
[Round "03"]
[TimeControl "180+1"]
[Date "2022.06.29"]
[WhiteClock "0:00:02"]
[BlackClock "0:00:10"]

1. d4 {[%clk 0:02:57]}  Nf6 {[%clk 0:03:00]} 2. c4 {[%clk 0:02:56]}  g6 {[%clk 0:03:00]} 3. Nc3 {[%clk 0:02:55]}  Bg7 {[%clk 0:03:01]} 4. e4 {[%clk 0:02:54]}  d6 {[%clk 0:03:01]} 5. Be2 {[%clk 0:02:54]}  O-O {[%clk 0:03:00]} 6. Nf3 {[%clk 0:02:52]}  e5 {[%clk 0:03:00]} 7. dxe5 {[%clk 0:02:49]}  dxe5 {[%clk 0:03:00]} 8. Qxd8 {[%clk 0:02:49]}  Rxd8 {[%clk 0:03:01]} 9. Bg5 {[%clk 0:02:48]}  c6 {[%clk 0:03:00]} 10. O-O {[%clk 0:02:46]}  Re8 {[%clk 0:02:55]} 11. Rfd1 {[%clk 0:02:43]}  Na6 {[%clk 0:02:42]} 12. b3 {[%clk 0:02:20]}  Nc5 {[%clk 0:02:33]} 13. Nd2 {[%clk 0:02:11]}  a5 {[%clk 0:02:24]} 14. f3 {[%clk 0:02:10]}  Be6 {[%clk 0:02:15]} 15. Be3 {[%clk 0:02:10]}  Bf8 {[%clk 0:02:12]} 16. Nf1 {[%clk 0:02:07]}  Nfd7 {[%clk 0:01:49]} 17. Rd2 {[%clk 0:02:04]}  a4 {[%clk 0:01:42]} 18. b4 {[%clk 0:02:02]}  Na6 {[%clk 0:01:39]} 19. a3 {[%clk 0:02:02]}  f5 {[%clk 0:01:26]} 20. Rad1 {[%clk 0:01:57]}  Nf6 {[%clk 0:01:26]} 21. exf5 {[%clk 0:01:36]}  gxf5 {[%clk 0:01:26]} 22. Nxa4 {[%clk 0:01:29]}  Nxb4 {[%clk 0:01:22]} 23. axb4 {[%clk 0:01:08]}  Rxa4 {[%clk 0:01:21]} 24. c5 {[%clk 0:01:03]}  Rxb4 {[%clk 0:01:18]} 25. Bf2 {[%clk 0:00:53]}  f4 {[%clk 0:00:59]} 26. Bd3 {[%clk 0:00:46]}  e4 {[%clk 0:00:44]} 27. fxe4 {[%clk 0:00:41]}  Nxe4 {[%clk 0:00:45]} 28. Bxe4 {[%clk 0:00:31]}  Rxe4 {[%clk 0:00:46]} 29. Rd8 {[%clk 0:00:24]}  Kf7 {[%clk 0:00:32]} 30. Rxe8 {[%clk 0:00:21]}  Kxe8 {[%clk 0:00:33]} 31. Nd2 {[%clk 0:00:20]}  Rb4 {[%clk 0:00:30]} 32. Nf3 {[%clk 0:00:18]}  Bd5 {[%clk 0:00:27]} 33. Ne5 {[%clk 0:00:13]}  Rb5 {[%clk 0:00:24]} 34. Ra1 {[%clk 0:00:10]}  Bxc5 {[%clk 0:00:23]} 35. Ra8+ {[%clk 0:00:09]}  Ke7 {[%clk 0:00:22]} 36. Bxc5+ {[%clk 0:00:09]}  Rxc5 {[%clk 0:00:23]} 37. Rh8 {[%clk 0:00:08]}  Rc1+ {[%clk 0:00:21]} 38. Kf2 {[%clk 0:00:08]}  Rc2+ {[%clk 0:00:22]} 39. Ke1 {[%clk 0:00:08]}  Rxg2 {[%clk 0:00:22]} 40. Rxh7+ {[%clk 0:00:09]}  Ke6 {[%clk 0:00:23]} 41. Nd3 {[%clk 0:00:06]}  Kf5 {[%clk 0:00:13]} 42. Rxb7 {[%clk 0:00:04]}  f3 {[%clk 0:00:12]} 43. Rb8 {[%clk 0:00:03]}  Re2+ {[%clk 0:00:12]} 44. Kf1 {[%clk 0:00:03]}  Bc4 {[%clk 0:00:12]} 45. Rf8+ {[%clk 0:00:02]}  Kg4 {[%clk 0:00:10]} 0-1


[Site "https://www.chess.com"]

[Event "Titled Tuesday Blitz June 28 Late 2022"]
[White "Prydun, Andriy"]
[Black "Kaganskiy, Gleb"]
[WhiteFideId "14145898"]
[BlackFideId "4132025"]
[WhiteElo "2063"]
[BlackElo "2165"]
[Result "1-0"]
[Round "03"]
[TimeControl "180+1"]
[Date "2022.06.29"]
[WhiteClock "0:00:10"]
[BlackClock "0:01:25"]

1. e4 {[%clk 0:02:21]}  g6 {[%clk 0:03:00]} 2. d4 {[%clk 0:02:15]}  Nf6 {[%clk 0:03:01]} 3. Nc3 {[%clk 0:02:14]}  d5 {[%clk 0:03:01]} 4. exd5 {[%clk 0:02:13]}  Nxd5 {[%clk 0:03:01]} 5. Nf3 {[%clk 0:02:11]}  Bg7 {[%clk 0:03:01]} 6. Bc4 {[%clk 0:01:58]}  Nxc3 {[%clk 0:02:56]} 7. bxc3 {[%clk 0:01:57]}  O-O {[%clk 0:02:57]} 8. O-O {[%clk 0:01:56]}  c5 {[%clk 0:02:54]} 9. Ba3 {[%clk 0:01:47]}  b6 {[%clk 0:02:41]} 10. dxc5 {[%clk 0:01:36]}  Bb7 {[%clk 0:02:41]} 11. cxb6 {[%clk 0:01:29]}  axb6 {[%clk 0:02:34]} 12. Qxd8 {[%clk 0:01:27]}  Rxd8 {[%clk 0:02:35]} 13. Bxe7 {[%clk 0:01:26]}  Re8 {[%clk 0:02:31]} 14. Bd6 {[%clk 0:01:14]}  Bxf3 {[%clk 0:02:27]} 15. gxf3 {[%clk 0:01:13]}  Nc6 {[%clk 0:02:18]} 16. Rab1 {[%clk 0:01:11]}  Ne5 {[%clk 0:02:13]} 17. Bxe5 {[%clk 0:01:10]}  Bxe5 {[%clk 0:02:11]} 18. Rxb6 {[%clk 0:01:10]}  Bxc3 {[%clk 0:02:06]} 19. Rb7 {[%clk 0:01:09]}  Rf8 {[%clk 0:02:04]} 20. Rd1 {[%clk 0:01:07]}  Rac8 {[%clk 0:01:59]} 21. Bb3 {[%clk 0:01:06]}  Rc6 {[%clk 0:01:59]} 22. Rdd7 {[%clk 0:00:44]}  Rf6 {[%clk 0:01:59]} 23. Kg2 {[%clk 0:00:44]}  Kg7 {[%clk 0:01:55]} 24. a4 {[%clk 0:00:42]}  h6 {[%clk 0:01:53]} 25. Ra7 {[%clk 0:00:41]}  g5 {[%clk 0:01:50]} 26. a5 {[%clk 0:00:38]}  h5 {[%clk 0:01:49]} 27. h3 {[%clk 0:00:37]}  Bb4 {[%clk 0:01:44]} 28. a6 {[%clk 0:00:36]}  g4 {[%clk 0:01:40]} 29. hxg4 {[%clk 0:00:16]}  hxg4 {[%clk 0:01:41]} 30. fxg4 {[%clk 0:00:16]}  Bc5 {[%clk 0:01:41]} 31. Rab7 {[%clk 0:00:16]}  Rxa6 {[%clk 0:01:39]} 32. Rxf7+ {[%clk 0:00:15]}  Rxf7 {[%clk 0:01:38]} 33. Rxf7+ {[%clk 0:00:16]}  Kg6 {[%clk 0:01:39]} 34. Rf5 {[%clk 0:00:16]}  Bd4 {[%clk 0:01:37]} 35. Bc4 {[%clk 0:00:16]}  Rc6 {[%clk 0:01:36]} 36. Bd3 {[%clk 0:00:16]}  Kg7 {[%clk 0:01:37]} 37. Kg3 {[%clk 0:00:15]}  Ba7 {[%clk 0:01:35]} 38. f4 {[%clk 0:00:14]}  Bb8 {[%clk 0:01:36]} 39. g5 {[%clk 0:00:14]}  Re6 {[%clk 0:01:33]} 40. Kg4 {[%clk 0:00:14]}  Re1 {[%clk 0:01:33]} 41. Rb5 {[%clk 0:00:14]}  Rg1+ {[%clk 0:01:32]} 42. Kf5 {[%clk 0:00:13]}  Bd6 {[%clk 0:01:32]} 43. Rb6 {[%clk 0:00:12]}  Kf8 {[%clk 0:01:32]} 44. Rxd6 {[%clk 0:00:11]}  Ke7 {[%clk 0:01:30]} 45. Re6+ {[%clk 0:00:11]}  Kf7 {[%clk 0:01:30]} 46. Rf6+ {[%clk 0:00:11]}  Kg7 {[%clk 0:01:30]} 47. Bc4 {[%clk 0:00:12]}  Rg2 {[%clk 0:01:29]} 48. Rf7+ {[%clk 0:00:12]}  Kh8 {[%clk 0:01:28]} 49. Kg6 {[%clk 0:00:12]}  Kg8 {[%clk 0:01:24]} 50. Rf6+ {[%clk 0:00:11]}  Kh8 {[%clk 0:01:25]} 51. Rf8# {[%clk 0:00:10]} 1-0


[Site "https://www.chess.com"]

[Event "Titled Tuesday Blitz June 28 Late 2022"]
[White "Ricaurte Lopez, Juan Carlos"]
[Black "Isajevsky, Anton"]
[WhiteFideId "3600327"]
[BlackFideId "4142500"]
[WhiteElo "2209"]
[BlackElo "2510"]
[Result "1-0"]
[Round "03"]
[TimeControl "180+1"]
[Date "2022.06.29"]
[WhiteClock "0:01:26"]
[BlackClock "0:00:02"]

1. e4 {[%clk 0:03:00]}  c5 {[%clk 0:02:59]} 2. Nf3 {[%clk 0:02:59]}  d6 {[%clk 0:02:59]} 3. d4 {[%clk 0:02:59]}  cxd4 {[%clk 0:03:00]} 4. Nxd4 {[%clk 0:02:59]}  Nf6 {[%clk 0:03:00]} 5. Nc3 {[%clk 0:02:59]}  a6 {[%clk 0:03:01]} 6. f4 {[%clk 0:02:58]}  Qc7 {[%clk 0:02:52]} 7. Bd3 {[%clk 0:02:55]}  Nbd7 {[%clk 0:02:46]} 8. Nf3 {[%clk 0:02:53]}  e6 {[%clk 0:02:31]} 9. O-O {[%clk 0:02:51]}  Be7 {[%clk 0:02:30]} 10. Kh1 {[%clk 0:02:50]}  O-O {[%clk 0:02:30]} 11. Qe2 {[%clk 0:02:47]}  b5 {[%clk 0:02:23]} 12. e5 {[%clk 0:02:45]}  Nd5 {[%clk 0:01:28]} 13. Nxd5 {[%clk 0:02:41]}  exd5 {[%clk 0:01:28]} 14. e6 {[%clk 0:02:41]}  Nc5 {[%clk 0:01:25]} 15. exf7+ {[%clk 0:02:36]}  Rxf7 {[%clk 0:01:26]} 16. Bd2 {[%clk 0:02:19]}  Bb7 {[%clk 0:01:00]} 17. Ng5 {[%clk 0:02:07]}  Bxg5 {[%clk 0:00:59]} 18. fxg5 {[%clk 0:02:07]}  Nxd3 {[%clk 0:00:39]} 19. Qxd3 {[%clk 0:02:04]}  Rxf1+ {[%clk 0:00:25]} 20. Rxf1 {[%clk 0:02:02]}  d4 {[%clk 0:00:12]} 21. Qxd4 {[%clk 0:01:57]}  Qc6 {[%clk 0:00:08]} 22. Rf2 {[%clk 0:01:50]}  Rf8 {[%clk 0:00:07]} 23. Bc3 {[%clk 0:01:44]}  Qd7 {[%clk 0:00:01]} 24. h3 {[%clk 0:01:39]}  Rxf2 {[%clk 0:00:01]} 25. Qxf2 {[%clk 0:01:39]}  Qxh3+ {[%clk 0:00:01]} 26. Kg1 {[%clk 0:01:37]}  Qe6 {[%clk 0:00:02]} 27. Qd4 {[%clk 0:01:32]}  Qd7 {[%clk 0:00:02]} 28. b3 {[%clk 0:01:29]}  Bc8 {[%clk 0:00:02]} 29. Bb4 {[%clk 0:01:26]} 1-0


[Site "https://www.chess.com"]

[Event "Titled Tuesday Blitz June 28 Late 2022"]
[White "Romero Ruscalleda, Josep"]
[Black "De La Colina, Nicolas"]
[WhiteFideId "2231859"]
[BlackFideId "30946921"]
[WhiteElo "2280"]
[BlackElo "2046"]
[Result "1/2-1/2"]
[Round "03"]
[TimeControl "180+1"]
[Date "2022.06.29"]
[WhiteClock "0:00:36"]
[BlackClock "0:00:06"]

1. e4 {[%clk 0:03:00]}  c5 {[%clk 0:02:59]} 2. c3 {[%clk 0:03:00]}  Nf6 {[%clk 0:02:59]} 3. e5 {[%clk 0:03:01]}  Nd5 {[%clk 0:02:59]} 4. Nf3 {[%clk 0:03:01]}  d6 {[%clk 0:02:58]} 5. Bc4 {[%clk 0:03:01]}  Nb6 {[%clk 0:02:55]} 6. Bb3 {[%clk 0:03:01]}  Nc6 {[%clk 0:02:50]} 7. exd6 {[%clk 0:03:00]}  Qxd6 {[%clk 0:02:51]} 8. O-O {[%clk 0:03:00]}  g6 {[%clk 0:02:41]} 9. Na3 {[%clk 0:02:58]}  Bg7 {[%clk 0:02:38]} 10. Re1 {[%clk 0:02:55]}  a6 {[%clk 0:02:26]} 11. Qe2 {[%clk 0:02:30]}  O-O {[%clk 0:02:24]} 12. h3 {[%clk 0:02:30]}  Bf5 {[%clk 0:02:20]} 13. d4 {[%clk 0:02:11]}  cxd4 {[%clk 0:02:21]} 14. Nxd4 {[%clk 0:02:11]}  Nxd4 {[%clk 0:02:09]} 15. cxd4 {[%clk 0:02:11]}  Rfe8 {[%clk 0:01:28]} 16. Be3 {[%clk 0:02:06]}  Rac8 {[%clk 0:01:21]} 17. Rad1 {[%clk 0:02:04]}  Be6 {[%clk 0:00:59]} 18. Bf4 {[%clk 0:01:33]}  Qxf4 {[%clk 0:00:52]} 19. Bxe6 {[%clk 0:01:33]}  Rcd8 {[%clk 0:00:45]} 20. g3 {[%clk 0:01:25]}  Qf6 {[%clk 0:00:31]} 21. Bg4 {[%clk 0:01:15]}  e6 {[%clk 0:00:26]} 22. Nc4 {[%clk 0:01:04]}  Nxc4 {[%clk 0:00:18]} 23. Qxc4 {[%clk 0:01:04]}  Rxd4 {[%clk 0:00:19]} 24. Qc7 {[%clk 0:01:00]}  Rxd1 {[%clk 0:00:16]} 25. Rxd1 {[%clk 0:00:58]}  Qxb2 {[%clk 0:00:16]} 26. Rd7 {[%clk 0:00:58]}  Rf8 {[%clk 0:00:15]} 27. Qxb7 {[%clk 0:00:57]}  Qxb7 {[%clk 0:00:16]} 28. Rxb7 {[%clk 0:00:57]}  Ra8 {[%clk 0:00:12]} 29. Bf3 {[%clk 0:00:53]}  Rc8 {[%clk 0:00:12]} 30. Ra7 {[%clk 0:00:52]}  Rc2 {[%clk 0:00:10]} 31. Ra8+ {[%clk 0:00:49]}  Bf8 {[%clk 0:00:09]} 32. a4 {[%clk 0:00:44]}  Kg7 {[%clk 0:00:07]} 33. Kf1 {[%clk 0:00:35]}  Bc5 {[%clk 0:00:07]} 34. Be2 {[%clk 0:00:36]}  Rc1+ {[%clk 0:00:06]} 35. Kg2 {[%clk 0:00:36]}  Rc2 {[%clk 0:00:07]} 36. Kf3 {[%clk 0:00:35]}  Rc3+ {[%clk 0:00:06]} 37. Kg2 {[%clk 0:00:35]}  Rc2 {[%clk 0:00:07]} 38. Kf1 {[%clk 0:00:36]}  Rc1+ {[%clk 0:00:06]} 39. Kg2 {[%clk 0:00:36]}  Rc2 {[%clk 0:00:06]} 1/2-1/2


[Site "https://www.chess.com"]